bitfinex/quotes_BTCUSD_20251209
["timestamp","ask_amount","ask_price","bid_price","bid_amount"]
[1765260327184,0.00178689,90060.0,90059.0,2.63867925]
[1765260327356,0.0004,90070.0,90069.0,2.61757315]
[1765260327577,0.00051597,90070.0,90069.0,2.66343315]
[1765260327730,0.00051597,90070.0,90069.0,2.68673315]
[1765260329337,0.00051597,90070.0,90069.0,2.68873315]
[1765260329540,0.00051597,90070.0,90069.0,2.70183242]
[1765260332935,0.00051597,90070.0,90069.0,2.25674343]
[1765260333824,0.00051597,90070.0,90069.0,2.31926642]
[1765260336169,0.00051597,90070.0,90069.0,2.46486642]
[1765260337472,0.0004,90100.0,90069.0,2.46486642]
[1765260337473,0.0004,90100.0,90079.0,0.6175485]
[1765260337728,0.0004,90100.0,90099.0,2.55497622]
[1765260337991,0.01149631,90120.0,90099.0,2.55497622]
[1765260337992,0.0004,90120.0,90109.0,1.54039659]
[1765260338197,0.0004,90120.0,90119.0,0.22192878]
[1765260338484,0.0004,90120.0,90119.0,0.27226478]
[1765260338700,0.0004,90120.0,90119.0,0.29556478]
[1765260339256,0.0004,90120.0,90119.0,0.27356878]
[1765260339455,0.0004,90120.0,90119.0,0.60756696]
[1765260339657,0.0004,90120.0,90119.0,1.65391496]
[1765260339658,0.0014,90120.0,90119.0,1.65391496]
[1765260343170,0.0014,90120.0,90119.0,1.16018996]
[1765260343568,0.0014,90120.0,90119.0,1.14757896]
[1765260343971,0.0014,90120.0,90119.0,1.13303596]
[1765260344833,0.0014,90120.0,90119.0,1.01314896]
[1765260346588,0.0014,90120.0,90119.0,1.00315078]
[1765260346789,0.0014,90120.0,90119.0,1.02514678]
[1765260348461,0.0014,90120.0,90119.0,1.03624137]
[1765260353115,0.0014,90120.0,90119.0,0.98822737]
[1765260353321,0.0014,90120.0,90119.0,0.88790237]
[1765260354676,0.0014,90120.0,90119.0,0.90989837]
[1765260355840,0.0014,90120.0,90119.0,0.88120637]
[1765260358297,0.0014,90120.0,90119.0,0.85838937]
[1765260367234,0.0014,90120.0,90119.0,0.83889137]
[1765260369437,0.0014,90120.0,90119.0,0.89804169]
[1765260371597,0.0014,90120.0,90119.0,0.86032869]
[1765260372475,0.0014,90120.0,90119.0,0.80117837]
[1765260375066,0.0014,90120.0,90119.0,0.77918237]
[1765260376934,0.0014,90120.0,90119.0,0.55725359]
[1765260377134,0.0014,90120.0,90119.0,0.61680945]
[1765260377335,0.0014,90120.0,90119.0,0.55725359]
[1765260379394,0.0014,90120.0,90119.0,0.57924959]
[1765260379722,0.0014,90120.0,90119.0,0.55725359]
[1765260379965,0.0014,90120.0,90119.0,0.57924959]
[1765260381762,0.0014,90120.0,90119.0,0.568155]
[1765260382193,0.0014,90120.0,90119.0,0.546159]
[1765260382400,0.00301287,90120.0,90119.0,0.06056339]
[1765260382603,0.00301287,90120.0,90119.0,0.001]
[1765260382754,0.00301287,90120.0,90119.0,0.04016]
[1765260383199,0.00301287,90120.0,90119.0,0.03916]
[1765260383415,0.00201287,90120.0,90119.0,0.03916]
[1765260383848,0.00601287,90120.0,90119.0,0.03916]
[1765260385493,0.00701287,90120.0,90119.0,0.03916]
[1765260386835,0.22192878,90119.0,90117.0,0.38976347]
[1765260387020,0.2219337,90117.0,90116.0,0.06676347]
[1765260388298,0.002,90117.0,90116.0,0.10592347]
[1765260389000,0.003,90117.0,90116.0,0.10592347]
[1765260394024,0.003,90117.0,90116.0,0.32785964]
[1765260394226,0.003,90117.0,90116.0,0.34985564]
[1765260399264,0.003,90117.0,90116.0,0.32785964]
[1765260404759,0.003,90117.0,90116.0,0.65085964]
[1765260415797,0.2249337,90117.0,90116.0,0.38976347]
[1765260421800,0.22195833,90107.0,90106.0,0.05956339]
[1765260422015,0.22195833,90107.0,90097.0,0.01226]
[1765260422016,0.0110984,90103.0,90098.0,0.05956339]
[1765260422216,0.0110984,90103.0,90102.0,0.06676347]
[1765260422788,0.2330688,90103.0,90102.0,0.06676347]
[1765260423223,0.2330688,90103.0,90102.0,0.08196347]
[1765260423540,0.25357862,90107.0,90103.0,0.0110984]
[1765260423762,0.25357862,90107.0,90103.0,0.0514984]
[1765260424101,0.01109804,90106.0,90104.0,0.02484]
[1765260424927,0.003,90103.0,90102.0,0.077862]
[1765260425126,0.003,90103.0,90102.0,0.06676347]
[1765260425330,0.01109816,90105.0,90102.0,0.06676347]
[1765260425892,0.23306386,90105.0,90102.0,0.06676347]
[1765260426097,0.22396819,90103.0,90102.0,0.06676347]
[1765260426309,0.22196819,90103.0,90102.0,0.06676347]
[1765260428279,0.22496819,90103.0,90102.0,0.06676347]
[1765260430305,0.22735819,90103.0,90102.0,0.06676347]
[1765260434778,0.003,90103.0,90102.0,0.10636347]
[1765260436331,0.00267814,90103.0,90102.0,0.10636347]
[1765260437006,0.00267814,90103.0,90102.0,0.08302347]
[1765260437209,0.03042416,90103.0,90102.0,0.06676347]
[1765260445279,0.03042416,90103.0,90095.0,0.07902347]
[1765260445280,0.22198543,90096.0,90095.0,0.07902347]
[1765260445481,0.22198543,90096.0,90095.0,0.06676347]
[1765260446240,0.22198543,90096.0,90081.0,0.09010347]
[1765260446241,0.01110038,90087.0,90081.0,0.09010347]
[1765260446450,0.22201254,90085.0,90084.0,0.01201591]
[1765260447558,0.22201254,90085.0,90084.0,0.01301591]
[1765260447909,0.22201254,90085.0,90084.0,0.01201591]
[1765260449442,0.22201254,90085.0,90084.0,0.01301591]
[1765260449664,0.22201254,90085.0,90084.0,0.01201591]
[1765260450144,0.22301254,90085.0,90084.0,0.01201591]
[1765260450306,0.22401254,90085.0,90084.0,0.01201591]
[1765260452498,0.002,90085.0,90084.0,0.01201591]
[1765260452784,0.002,90085.0,90084.0,0.05161591]
[1765260458898,0.002,90085.0,90084.0,2.25308409]
[1765260459116,0.002,90085.0,90084.0,2.31264748]
[1765260459515,0.002,90085.0,90084.0,2.25308409]
[1765260460036,0.001,90085.0,90084.0,2.25308409]
[1765260460238,0.01109816,90105.0,90102.0,0.01109853]
[1765260460439,0.01109816,90105.0,90104.0,0.07866347]
[1765260460640,0.23306142,90105.0,90104.0,0.07866347]
[1765260461429,0.01109804,90106.0,90104.0,0.11826347]
[1765260461639,0.01109804,90106.0,90105.0,0.0396]
[1765260462941,0.01409804,90106.0,90105.0,0.0396]
[1765260463308,0.01609804,90106.0,90105.0,0.0396]
[1765260463515,0.01771091,90106.0,90105.0,0.0396]
[1765260463713,0.01771091,90106.0,90105.0,0.01626]
[1765260465184,0.01771091,90106.0,90105.0,0.03913]
[1765260465948,0.01571091,90106.0,90105.0,0.03913]
[1765260466153,0.01371091,90106.0,90105.0,0.03913]
[1765260466478,0.00361287,90106.0,90105.0,0.03913]
[1765260467005,0.00361287,90106.0,90104.0,0.07866347]
[1765260467220,0.22557573,90106.0,90104.0,0.06676347]
[1765260467987,0.00239,90105.0,90104.0,0.06676347]
[1765260468549,0.00239,90105.0,90090.0,0.18222342]
[1765260468550,0.01109964,90093.0,90090.0,0.18222342]
[1765260468826,0.22199679,90092.0,90090.0,0.0119]
[1765260469072,0.22200515,90088.0,90087.0,0.01173]
[1765260471245,0.22200483,90089.0,90087.0,0.01173]
[1765260472418,0.001,90088.0,90087.0,0.01173]
[1765260472621,0.22200483,90089.0,90087.0,0.01173]
[1765260472839,0.22201254,90085.0,90084.0,0.00011591]
[1765260474515,0.22201254,90085.0,90084.0,0.00111591]
[1765260481873,0.01110001,90090.0,90085.0,0.01110062]
[1765260482019,0.01752,90094.0,90091.0,0.01109988]
[1765260482221,0.01752,90094.0,90092.0,0.02287]
[1765260482435,0.23307626,90100.0,90095.0,0.01109939]
[1765260482645,0.01109877,90100.0,90099.0,0.09361347]
[1765260483105,0.01109877,90100.0,90099.0,0.11648347]
[1765260483965,0.01409877,90100.0,90099.0,0.11648347]
[1765260484589,0.01609877,90100.0,90099.0,0.11648347]
[1765260484991,0.01409877,90100.0,90099.0,0.11648347]
[1765260485159,0.01109877,90100.0,90099.0,0.11648347]
[1765260485711,0.01209877,90100.0,90099.0,0.11648347]
[1765260487166,0.001,90100.0,90099.0,0.11648347]
[1765260488319,0.001,90100.0,90099.0,0.07849347]
[1765260488521,0.001,90100.0,90099.0,0.06676347]
[1765260489732,0.001,90100.0,90099.0,0.08212347]
[1765260490570,0.001,90100.0,90099.0,0.30410151]
[1765260490747,0.001,90100.0,90099.0,0.10694347]
[1765260493374,0.001,90100.0,90099.0,0.08212347]
[1765260493534,0.001,90100.0,90099.0,0.10511347]
[1765260496200,0.001,90100.0,90099.0,0.06676347]
[1765260496402,0.01850517,90100.0,90099.0,0.06676347]
[1765260496971,0.02089517,90100.0,90099.0,0.06676347]
[1765260497176,0.01109939,90095.0,90093.0,0.06676347]
[1765260497386,0.22199036,90094.0,90093.0,0.06676347]
[1765260497780,0.22198842,90095.0,90093.0,0.10594347]
[1765260498728,0.22198842,90095.0,90093.0,0.10694347]
[1765260498960,0.22198842,90095.0,90093.0,0.10594347]
[1765260499394,0.01109927,90096.0,90093.0,0.10794347]
[1765260499694,0.23308659,90096.0,90093.0,0.06876347]
[1765260499924,0.01109927,90096.0,90093.0,0.06876347]
[1765260500099,0.01109927,90096.0,90093.0,0.30185589]
[1765260500263,0.01109927,90096.0,90093.0,0.07886311]
[1765260500462,0.2394895,90103.0,90099.0,0.0110989]
[1765260500666,0.2394895,90103.0,90101.0,0.01619]
[1765260501062,0.2394895,90103.0,90101.0,0.03918]
[1765260501294,0.01752,90103.0,90101.0,0.03918]
[1765260501618,0.01752,90103.0,90102.0,0.03918]
[1765260502345,0.01752,90103.0,90102.0,0.26115065]
[1765260502663,0.01852,90103.0,90102.0,0.26115065]
[1765260503270,0.01952,90103.0,90102.0,0.26115065]
[1765260503913,0.01852,90103.0,90102.0,0.26115065]
[1765260504089,0.01952,90103.0,90102.0,0.26115065]
[1765260505760,0.002,90103.0,90102.0,0.58415065]
[1765260505921,0.002,90103.0,90102.0,0.60614665]
[1765260506528,0.001,90103.0,90102.0,0.60614665]
[1765260506930,0.01109693,90115.0,90112.0,0.0110973]
[1765260507158,0.01109693,90115.0,90114.0,0.07904347]
[1765260507462,0.23303556,90115.0,90114.0,0.07904347]
[1765260507758,0.01109693,90115.0,90114.0,0.07904347]
[1765260507959,0.0110968,90116.0,90114.0,0.07904347]
[1765260508323,0.003,90115.0,90114.0,0.07904347]
[1765260508733,0.004,90115.0,90114.0,0.07904347]
[1765260509154,0.003,90115.0,90114.0,0.07904347]
[1765260509691,0.005,90115.0,90114.0,0.07904347]
[1765260511244,0.005,90115.0,90114.0,0.06676347]
[1765260511245,0.00900287,90115.0,90114.0,0.06676347]
[1765260511449,0.2330635,90105.0,90102.0,0.323]
[1765260511650,0.22435819,90103.0,90101.0,0.01228]
[1765260511896,0.01109902,90098.0,90094.0,0.34637951]
[1765260512075,0.23307883,90099.0,90094.0,0.34637951]
[1765260512268,0.22198297,90097.0,90094.0,0.34637951]
[1765260512479,0.01109902,90098.0,90094.0,0.34637951]
[1765260512669,0.01109902,90098.0,90095.0,0.01109939]
[1765260512920,0.01109902,90098.0,90095.0,0.23308714]
[1765260513125,0.01109902,90098.0,90095.0,0.01109939]
[1765260513268,0.23308211,90097.0,90094.0,0.33528]
[1765260513467,0.01109914,90097.0,90094.0,0.01228]
[1765260513669,0.01109914,90097.0,90094.0,0.02337951]
[1765260513863,0.01109902,90098.0,90095.0,0.01109939]
[1765260514071,0.01109902,90098.0,90095.0,0.01309939]
[1765260514266,0.01109902,90098.0,90095.0,0.01109939]
[1765260514489,0.01109914,90097.0,90094.0,0.02337951]
[1765260514717,0.01109914,90097.0,90094.0,0.02637951]
[1765260514908,0.01109914,90097.0,90094.0,0.01428]
[1765260515383,0.01109865,90101.0,90096.0,0.01619]
[1765260515607,0.01109865,90101.0,90097.0,0.23817297]
[1765260516054,0.25219946,90103.0,90100.0,0.02847]
[1765260516648,0.01913287,90103.0,90100.0,0.06255877]
[1765260516838,0.01913287,90103.0,90102.0,0.01619]
[1765260517388,0.02013287,90103.0,90102.0,0.01619]
[1765260518016,0.01913287,90103.0,90102.0,0.01619]
[1765260518765,0.02013287,90103.0,90102.0,0.01619]
[1765260519317,0.02013287,90103.0,90102.0,0.03918]
[1765260519545,0.02013287,90103.0,90102.0,0.26115065]
[1765260520122,0.02213287,90103.0,90102.0,0.26115065]
[1765260521814,0.02213287,90103.0,90102.0,0.03918]
[1765260523824,0.02213287,90103.0,90102.0,0.26115065]
[1765260524449,0.02052,90103.0,90102.0,0.26115065]
[1765260525380,0.01952,90103.0,90102.0,0.26115065]
[1765260525786,0.01952,90103.0,90102.0,0.26215065]
[1765260525972,0.01752,90103.0,90102.0,0.26215065]
[1765260526405,0.01109767,90109.0,90106.0,0.23305878]
[1765260526543,0.01109754,90110.0,90109.0,0.01171]
[1765260526978,0.01109742,90111.0,90109.0,0.01171]
[1765260527137,0.01109742,90111.0,90110.0,0.06676347]
[1765260527363,0.01752,90112.0,90110.0,0.06676347]
[1765260528162,0.22194848,90111.0,90110.0,0.06676347]
[1765260528345,0.22294848,90111.0,90110.0,0.06676347]
[1765260528764,0.01752,90112.0,90110.0,0.06676347]
[1765260528968,0.2394684,90112.0,90110.0,0.06676347]
[1765260529341,0.2414684,90112.0,90110.0,0.06676347]
[1765260530572,0.2424684,90112.0,90110.0,0.06676347]
[1765260531089,0.24408127,90112.0,90110.0,0.06676347]
[1765260537165,0.22656127,90112.0,90110.0,0.06676347]
[1765260540448,0.00461287,90112.0,90111.0,0.01171]
[1765260540647,0.00461287,90112.0,90111.0,0.02762]
[1765260540940,0.00461287,90112.0,90111.0,0.05135]
[1765260541093,0.00461287,90112.0,90111.0,0.02762]
[1765260541492,0.00361287,90112.0,90111.0,0.02762]
[1765260541694,0.00261287,90112.0,90111.0,0.02762]
[1765260542025,0.00461287,90112.0,90111.0,0.02762]
[1765260542984,0.22194848,90111.0,90110.0,0.06676347]
[1765260544299,0.001,90111.0,90110.0,0.06676347]
[1765260544527,0.001,90111.0,90110.0,0.10663347]
[1765260545683,0.003,90111.0,90110.0,0.10663347]
[1765260547150,0.003,90111.0,90110.0,0.12862947]
[1765260547481,0.003,90111.0,90110.0,0.45162947]
[1765260548085,0.002,90111.0,90110.0,0.51123528]
[1765260548285,0.01109533,90128.0,90119.0,0.22192878]
[1765260548499,0.01109533,90128.0,90119.0,0.23726878]
[1765260548712,0.01109533,90128.0,90119.0,0.26179878]
[1765260549462,0.01109557,90126.0,90119.0,0.26179878]
[1765260550302,0.01109545,90127.0,90119.0,0.26179878]
[1765260550454,0.01109557,90126.0,90119.0,0.26179878]
[1765260550661,0.01109582,90124.0,90119.0,0.26179878]
[1765260551401,0.0110957,90125.0,90119.0,0.26179878]
[1765260551700,0.01109545,90127.0,90119.0,0.26179878]
[1765260552511,0.01109557,90126.0,90119.0,0.23726878]
[1765260552700,0.0110957,90125.0,90119.0,0.22192878]
[1765260553097,0.01109545,90127.0,90119.0,0.22192878]
[1765260553302,0.01109545,90127.0,90119.0,0.26118878]
[1765260553599,0.01109557,90126.0,90119.0,0.26118878]
[1765260553825,0.01109545,90127.0,90119.0,0.26118878]
[1765260554018,0.01109533,90128.0,90119.0,0.26118878]
[1765260554237,0.01109557,90126.0,90119.0,0.26118878]
[1765260554438,0.01109545,90127.0,90119.0,0.26118878]
[1765260555110,0.01109533,90128.0,90119.0,0.26118878]
[1765260555406,0.01109545,90127.0,90119.0,0.26118878]
[1765260556386,0.01109557,90126.0,90119.0,0.26118878]
[1765260556586,0.23300207,90128.0,90119.0,0.26118878]
[1765260556787,0.0110957,90125.0,90119.0,0.26118878]
[1765260557049,0.01109557,90126.0,90119.0,0.26118878]
[1765260557233,0.01109533,90128.0,90119.0,0.26118878]
[1765260557432,0.01109557,90126.0,90119.0,0.26118878]
[1765260557638,0.01109545,90127.0,90119.0,0.26118878]
[1765260557979,0.01109533,90128.0,90119.0,0.26118878]
[1765260558196,0.0110952,90129.0,90119.0,0.26118878]
[1765260558550,0.01109496,90131.0,90119.0,0.26118878]
[1765260558757,0.01109508,90130.0,90119.0,0.26118878]
[1765260559541,0.03883236,90131.0,90119.0,0.26118878]
[1765260559542,0.01109496,90131.0,90119.0,0.26118878]
[1765260559744,0.0110952,90129.0,90119.0,0.26118878]
[1765260560364,0.01109508,90130.0,90119.0,0.26118878]
[1765260561869,0.01109496,90131.0,90119.0,0.26118878]
[1765260562068,0.01109471,90133.0,90119.0,0.26118878]
[1765260562511,0.01109508,90130.0,90119.0,0.26118878]
[1765260562860,0.03883321,90129.0,90119.0,0.26118878]
[1765260563044,0.02773801,90129.0,90119.0,0.26118878]
[1765260564986,0.01109545,90127.0,90119.0,0.26118878]
[1765260565190,0.01109533,90128.0,90119.0,0.26118878]
[1765260565397,0.02773832,90128.0,90119.0,0.26118878]
[1765260565599,0.03883365,90128.0,90119.0,0.26118878]
[1765260565941,0.02773832,90128.0,90119.0,0.26118878]
[1765260566352,0.0110952,90129.0,90119.0,0.26118878]
[1765260566878,0.01109508,90130.0,90119.0,0.26118878]
[1765260567397,0.0110952,90129.0,90119.0,0.26118878]
[1765260568035,0.01109508,90130.0,90119.0,0.26118878]
[1765260568185,0.01109483,90132.0,90119.0,0.26118878]
[1765260568733,0.01109471,90133.0,90119.0,0.28318478]
[1765260569066,0.02861446,90135.0,90119.0,0.28318478]
[1765260569067,0.02861446,90135.0,90119.0,0.60618478]
[1765260569269,0.01109471,90133.0,90119.0,0.60618478]
[1765260569683,0.01109483,90132.0,90119.0,0.60618478]
[1765260570274,0.01109471,90133.0,90119.0,0.60618478]
[1765260570687,0.01109483,90132.0,90119.0,0.60618478]
[1765260571280,0.01109471,90133.0,90119.0,0.60618478]
[1765260573438,0.01109483,90132.0,90119.0,0.60618478]
[1765260573645,0.01109471,90133.0,90119.0,0.60618478]
[1765260574762,0.01109459,90134.0,90119.0,0.60618478]
[1765260575295,0.01109471,90133.0,90119.0,0.60618478]
[1765260576191,0.01109508,90130.0,90119.0,0.60618478]
[1765260576393,0.01109508,90130.0,90119.0,0.66575552]
[1765260578708,0.0110952,90129.0,90119.0,0.66575552]
[1765260579276,0.23299859,90130.0,90119.0,0.66575552]
[1765260579487,0.01109508,90130.0,90119.0,0.66575552]
[1765260579688,0.01109533,90128.0,90119.0,0.66575552]
[1765260580736,0.01109508,90130.0,90119.0,0.66575552]
[1765260581769,0.01109533,90128.0,90119.0,0.66575552]
[1765260582953,0.01109545,90127.0,90119.0,0.66575552]
[1765260583518,0.01109508,90130.0,90119.0,2.60618478]
[1765260583754,0.01109459,90134.0,90119.0,1.34175478]
[1765260583955,0.01109459,90134.0,90119.0,1.10874678]
[1765260584162,0.01109459,90134.0,90119.0,0.92956678]
[1765260585029,0.01109471,90133.0,90119.0,0.92956678]
[1765260586335,0.01109459,90134.0,90119.0,0.92956678]
[1765260587060,0.01109471,90133.0,90119.0,0.92956678]
[1765260587904,0.01109459,90134.0,90119.0,0.92956678]
[1765260589110,0.01109446,90135.0,90119.0,0.92956678]
[1765260593221,0.01109471,90133.0,90119.0,0.92956678]
[1765260593623,0.01109459,90134.0,90119.0,0.92956678]
[1765260594754,0.01109471,90133.0,90119.0,0.92956678]
[1765260594954,0.01109459,90134.0,90119.0,0.92956678]
[1765260595397,0.01109446,90135.0,90119.0,0.92956678]
[1765260596274,0.01109459,90134.0,90119.0,0.92956678]
[1765260596493,0.01109446,90135.0,90119.0,0.92956678]
[1765260597683,0.23298619,90135.0,90119.0,0.92956678]
[1765260597879,0.01109496,90131.0,90119.0,0.79802878]
[1765260598076,0.01109471,90133.0,90119.0,0.79802878]
[1765260598302,0.01109446,90135.0,90119.0,0.79802878]
[1765260598840,0.01109459,90134.0,90119.0,0.79802878]
[1765260599936,0.01109483,90132.0,90119.0,0.79802878]
[1765260600907,0.01109496,90131.0,90119.0,0.79802878]
[1765260602702,0.01109508,90130.0,90119.0,0.79802878]
[1765260603896,0.01109373,90141.0,90119.0,0.77603278]
[1765260604099,0.02861299,90147.0,90119.0,0.78603096]
[1765260604312,0.01109311,90146.0,90119.0,0.79712469]
[1765260604504,0.01109348,90143.0,90119.0,0.79712469]
[1765260605001,0.01109373,90141.0,90119.0,0.79712469]
[1765260605189,0.01149385,90140.0,90119.0,0.79812469]
[1765260605365,0.01149385,90140.0,90119.0,0.79912469]
[1765260605971,0.01109397,90139.0,90119.0,0.79912469]
[1765260606198,0.22188499,90137.0,90119.0,0.79912469]
[1765260606370,0.01109422,90137.0,90119.0,0.79912469]
[1765260606776,0.0110941,90138.0,90119.0,0.79912469]
[1765260607398,0.01109422,90137.0,90119.0,0.79912469]
[1765260608703,0.01109446,90135.0,90119.0,0.79912469]
[1765260608883,0.01109422,90137.0,90119.0,0.79912469]
[1765260609115,0.0110941,90138.0,90119.0,0.79912469]
[1765260609329,0.01348397,90139.0,90119.0,0.79912469]
[1765260609534,0.0110941,90138.0,90119.0,0.79912469]
[1765260609759,0.00239,90139.0,90119.0,0.79912469]
[1765260610514,0.0004,90140.0,90119.0,0.79912469]
[1765260612605,0.0004,90140.0,90119.0,0.79712469]
[1765260613602,0.0004,90140.0,90119.0,0.94393654]
[1765260613802,0.0004,90140.0,90119.0,0.97506341]
[1765260614011,0.0014,90120.0,90119.0,0.98406341]
[1765260615413,0.0014,90120.0,90119.0,1.12966341]
[1765260615617,0.0004,90140.0,90139.0,2.55560854]
[1765260615858,0.00051591,90140.0,90139.0,2.45226554]
[1765260616079,0.00051591,90140.0,90139.0,2.28770854]
[1765260616272,0.00051591,90140.0,90139.0,2.29880017]
[1765260616827,0.00051591,90140.0,90139.0,1.36074217]
[1765260617464,0.00051591,90140.0,90139.0,1.38373817]
[1765260618749,0.00051591,90140.0,90139.0,1.36174217]
[1765260618944,0.00051591,90140.0,90139.0,1.33577017]
[1765260619148,0.00051591,90140.0,90139.0,1.40253364]
[1765260619693,0.00051591,90140.0,90139.0,1.39217864]
[1765260621817,0.00212878,90140.0,90139.0,0.06776347]
[1765260622026,0.22639586,90140.0,90139.0,0.001]
[1765260622181,0.22878586,90140.0,90139.0,0.001]
[1765260623085,0.22878586,90140.0,90129.0,0.1566952]
[1765260623086,0.01109446,90135.0,90131.0,0.03524496]
[1765260623279,0.23297668,90138.0,90134.0,0.01609]
[1765260623484,0.0110941,90138.0,90137.0,0.01148]
[1765260623881,0.00412878,90140.0,90138.0,0.221882]
[1765260624109,0.00412878,90140.0,90139.0,0.08285347]
[1765260624309,0.00051591,90140.0,90139.0,0.10700347]
[1765260625108,0.00151591,90140.0,90139.0,0.32888301]
[1765260625335,0.00151591,90140.0,90139.0,0.10700347]
[1765260626393,0.00051591,90140.0,90139.0,0.10700347]
[1765260626910,0.00251591,90140.0,90139.0,0.10700347]
[1765260627113,0.00351591,90140.0,90139.0,0.10700347]
[1765260627756,0.00351591,90140.0,90139.0,0.32888301]
[1765260629526,0.00351591,90140.0,90139.0,0.10700347]
[1765260629786,0.00351591,90140.0,90139.0,0.32888301]
[1765260630550,0.00351591,90140.0,90139.0,0.10700347]
[1765260630785,0.00351591,90140.0,90139.0,0.30473301]
[1765260631010,0.00351591,90140.0,90137.0,0.01109422]
[1765260631011,0.00512878,90140.0,90137.0,0.01109422]
[1765260631227,0.00512878,90140.0,90139.0,0.06676347]
[1765260631582,0.22700586,90140.0,90139.0,0.06676347]
[1765260631775,0.22939586,90140.0,90139.0,0.06637117]
[1765260632162,0.22839586,90140.0,90139.0,0.06637117]
[1765260633372,0.22939586,90140.0,90139.0,0.06637117]
[1765260638346,0.22700586,90140.0,90139.0,0.06637117]
[1765260641044,0.00512878,90140.0,90139.0,0.06637117]
[1765260642524,0.02264878,90140.0,90139.0,0.06637117]
[1765260645782,0.00512878,90140.0,90139.0,0.06637117]
[1765260645949,0.00512878,90140.0,90139.0,0.28825071]
[1765260645950,0.02264878,90140.0,90139.0,0.28825071]
[1765260646145,0.02264878,90140.0,90139.0,0.06637117]
[1765260647297,0.02264878,90140.0,90139.0,0.10589117]
[1765260647668,0.02264878,90140.0,90139.0,0.08228117]
[1765260648082,0.02264878,90140.0,90139.0,0.12788717]
[1765260648281,0.02264878,90140.0,90139.0,0.10589117]
[1765260650932,0.00512878,90140.0,90139.0,0.10589117]
[1765260654418,0.00351591,90140.0,90139.0,1.65584935]
[1765260654539,0.00351591,90140.0,90139.0,1.63857635]
[1765260655182,0.00051591,90140.0,90139.0,1.63857635]
[1765260655341,0.00051591,90140.0,90139.0,1.63957635]
[1765260659717,0.00051591,90140.0,90139.0,1.65157417]
[1765260660926,0.00051591,90140.0,90139.0,0.62451117]
[1765260661465,0.00051591,90140.0,90139.0,0.64650717]
[1765260662574,0.00212878,90140.0,90139.0,0.06737117]
[1765260662771,0.00451878,90140.0,90139.0,0.06737117]
[1765260662952,0.00451878,90140.0,90139.0,0.001]
[1765260663272,0.22190908,90127.0,90125.0,0.06676347]
[1765260663434,0.22352195,90127.0,90125.0,0.06676347]
[1765260663818,0.00400287,90126.0,90125.0,0.06676347]
[1765260664063,0.01109656,90118.0,90115.0,0.05946327]
[1765260664257,0.23303172,90117.0,90113.0,0.129045]
[1765260664433,0.01109717,90113.0,90109.0,0.02259767]
[1765260664639,0.0110973,90112.0,90109.0,0.0115]
[1765260664842,0.22194848,90111.0,90109.0,0.0115]
[1765260665798,0.0120973,90112.0,90109.0,0.0115]
[1765260665957,0.0120973,90112.0,90110.0,0.108351]
[1765260666280,0.0110968,90116.0,90112.0,0.290781]
[1765260666439,0.0110968,90116.0,90113.0,0.01109717]
[1765260666645,0.0110968,90116.0,90113.0,0.03410717]
[1765260666861,0.0110968,90116.0,90114.0,0.02301]
[1765260667040,0.0110968,90116.0,90115.0,0.01525]
[1765260667856,0.01109705,90114.0,90111.0,0.149545]
[1765260668049,0.01109705,90114.0,90112.0,0.02301]
[1765260669369,0.01209705,90114.0,90112.0,0.02301]
[1765260669576,0.001,90114.0,90112.0,0.02301]
[1765260669775,0.00640805,90114.0,90112.0,0.02301]
[1765260669976,0.001,90114.0,90112.0,0.02301]
[1765260670338,0.002,90114.0,90112.0,0.02301]
[1765260671421,0.002,90114.0,90113.0,0.01525]
[1765260672126,0.001,90114.0,90113.0,0.01525]
[1765260672710,0.003,90114.0,90113.0,0.03929]
[1765260674413,0.003,90114.0,90113.0,0.061286]
[1765260674610,0.003,90114.0,90113.0,0.03929]
[1765260676250,0.003,90114.0,90113.0,0.01525]
[1765260676607,0.00840805,90114.0,90113.0,0.03929]
[1765260676996,0.23034914,90114.0,90113.0,0.01525]
[1765260677838,0.01109717,90113.0,90110.0,0.01109754]
[1765260678041,0.003,90114.0,90111.0,0.106504]
[1765260678271,0.01409705,90114.0,90111.0,0.106504]
[1765260678469,0.23304285,90113.0,90110.0,0.02404]
[1765260678651,0.23304285,90113.0,90109.0,0.0115]
[1765260678652,0.22194848,90111.0,90109.0,0.0115]
[1765260679930,0.01109779,90108.0,90106.0,0.607252]
[1765260680134,0.22195833,90107.0,90106.0,0.588763]
[1765260680334,0.01109779,90108.0,90106.0,0.588763]
[1765260680659,0.01109779,90108.0,90107.0,0.640342]
[1765260680871,0.22195833,90107.0,90105.0,0.06676347]
[1765260681540,0.22195833,90107.0,90106.0,0.001]
[1765260681964,0.22195833,90107.0,90105.0,0.06676347]
[1765260682165,0.22395833,90107.0,90105.0,0.06676347]
[1765260682366,0.22495833,90107.0,90105.0,0.06676347]
[1765260682709,0.22198051,90098.0,90094.0,0.0115]
[1765260682877,0.01109877,90100.0,90091.0,0.06676347]
[1765260682878,0.22199529,90092.0,90091.0,0.06676347]
[1765260683088,0.22438529,90092.0,90091.0,0.06676347]
[1765260684076,0.22199529,90092.0,90091.0,0.06676347]
[1765260684548,0.22299529,90092.0,90091.0,0.06676347]
[1765260685286,0.23312352,90081.0,90080.0,0.58234973]
[1765260685469,0.25542598,90081.0,90080.0,0.00011591]
[1765260685702,0.27733834,90081.0,90080.0,0.00011591]
[1765260687077,0.27733834,90081.0,90080.0,0.00111591]
[1765260687482,0.27833834,90081.0,90080.0,0.00111591]
[1765260687804,0.27833834,90081.0,90080.0,0.00011591]
[1765260688026,0.27733834,90081.0,90080.0,0.00011591]
[1765260688968,0.27895121,90081.0,90080.0,0.00011591]
[1765260691691,0.37678482,90081.0,90080.0,0.00011591]
[1765260692101,0.28437254,90081.0,90080.0,0.00011591]
[1765260692337,0.34689553,90081.0,90080.0,0.00011591]
[1765260692537,0.2221013,90049.0,90048.0,0.06676347]
[1765260692702,0.2221013,90049.0,90048.0,0.00038689]
[1765260692703,0.2244913,90049.0,90048.0,0.00038689]
[1765260692895,0.2268813,90049.0,90048.0,0.00038689]
[1765260693126,0.24879366,90049.0,90048.0,0.00038689]
[1765260693927,0.24879366,90049.0,90048.0,0.00138689]
[1765260694719,0.24879366,90049.0,90048.0,0.00238689]
[1765260695368,0.2268813,90049.0,90048.0,0.00238689]
[1765260695881,0.2244913,90049.0,90048.0,0.00238689]
[1765260696079,0.2268813,90049.0,90048.0,0.00238689]
[1765260698048,0.23034513,90049.0,90048.0,0.00238689]
[1765260703549,0.25225749,90049.0,90048.0,0.00238689]
[1765260703955,0.23034513,90049.0,90048.0,0.00238689]
[1765260704167,0.25225749,90049.0,90048.0,0.00238689]
[1765260704700,0.25225749,90049.0,90048.0,0.00138689]
[1765260705434,0.25225749,90049.0,90048.0,0.00038689]